bitfinex-derivatives/quotes_SOLF0:USTF0_20220101
["timestamp","ask_amount","ask_price","bid_price","bid_amount"]
[1641013949217,27.66479,171.46,171.38,12.40357886]
[1641013949518,33.37279,171.46,171.38,12.40357886]
[1641013949718,33.37279,171.46,171.36,36.32479]
[1641013949719,3.0,171.45,171.36,40.06836886]
[1641013949920,33.7878,171.45,171.36,40.06836886]
[1641013950321,3.0,171.44,171.36,40.06836886]
[1641013950519,33.7878,171.45,171.36,40.06836886]
[1641013950920,10.53033294,171.44,171.36,27.66479]
[1641013951120,13.53033294,171.44,171.36,27.66479]
[1641013953021,10.53033294,171.44,171.36,27.66479]
[1641013955431,30.7878,171.45,171.36,27.66479]
[1641013955629,30.7878,171.45,171.37,50.87647732]
[1641013955830,55.32958,171.46,171.37,50.87647732]
[1641013956030,33.13022129,171.48,171.41,3.0]
[1641013956229,33.13022129,171.48,171.41,8.86]
[1641013956630,33.13022129,171.51,171.41,8.86]
[1641013957329,33.13022129,171.51,171.44,27.66479]
[1641013957529,10.54530463,171.51,171.44,27.66479]
[1641013960033,10.54530463,171.51,171.42,32.2274]
[1641013961334,10.54530463,171.51,171.42,59.89219]
[1641013964238,10.54530463,171.51,171.42,62.89219]
[1641013964438,10.54530463,171.52,171.42,62.89219]
[1641013964638,10.54530463,171.52,171.42,66.42019]
[1641013964837,27.66479,171.53,171.42,69.42019]
[1641013965038,27.66479,171.53,171.44,12.40357886]
[1641013965439,27.66479,171.53,171.46,27.66479]
[1641013966237,27.66479,171.53,171.44,12.40357886]
[1641013966438,34.38579,171.53,171.44,12.40357886]
[1641013966739,34.38579,171.53,171.45,3.0]
[1641013967137,34.38579,171.53,171.44,15.40357886]
[1641013967337,34.38579,171.53,171.47,27.66479]
[1641013967539,10.54130508,171.52,171.47,32.13579]
[1641013967938,10.54130508,171.52,171.47,4.471]
[1641013968139,27.66479,171.53,171.47,4.471]
[1641013968641,27.66479,171.53,171.44,12.40357886]
[1641013968939,10.54430917,171.52,171.43,18.42200686]
[1641013970040,10.54430917,171.52,171.42,72.29576886]
[1641013972543,10.54430917,171.52,171.42,59.89219]
[1641013973343,16.19030917,171.52,171.42,59.89219]
[1641013974645,16.19030917,171.52,171.42,62.89219]
[1641013974945,10.54430917,171.52,171.43,3.0]
[1641013975144,10.54430917,171.52,171.43,9.098]
[1641013975344,10.54430917,171.52,171.43,21.50157886]
[1641013975546,10.54430917,171.52,171.46,27.66479]
[1641013977047,10.54430917,171.52,171.43,12.40357886]
[1641013978149,10.54430917,171.52,171.42,75.29576886]
[1641013981054,10.54430917,171.52,171.43,1.22039616]
[1641013982056,10.54430917,171.52,171.43,10.82539616]
[1641013983056,27.66479,171.53,171.43,10.82539616]
[1641013983255,27.66479,171.53,171.44,1.22039616]
[1641013984461,10.53354842,171.52,171.44,1.22039616]
[1641013985055,10.53354842,171.52,171.43,1.22039616]
[1641013986757,10.53354842,171.52,171.43,4.22039616]
[1641013987458,10.53354842,171.52,171.44,1.22039616]
[1641013987957,10.53354842,171.52,171.43,1.22039616]
[1641013988557,10.53354842,171.52,171.43,4.22039616]
[1641013988859,10.53354842,171.52,171.43,1.22039616]
[1641013989258,15.06554842,171.52,171.43,1.22039616]
[1641013989459,48.19576971,171.52,171.43,1.22039616]
[1641013990159,33.13022129,171.51,171.43,1.22039616]
[1641013991058,48.19576971,171.52,171.43,1.22039616]
[1641013991858,33.13022129,171.51,171.43,1.22039616]
[1641013992561,48.19576971,171.52,171.43,1.22039616]
[1641013998069,15.06554842,171.52,171.43,1.22039616]
[1641013998368,10.53354842,171.52,171.43,1.22039616]
[1641013998571,43.66376971,171.52,171.43,1.22039616]
[1641013999571,10.53354842,171.52,171.43,1.22039616]
[1641014000170,43.66376971,171.52,171.43,1.22039616]
[1641014001272,43.66376971,171.52,171.45,4.14098389]
[1641014003182,43.66376971,171.52,171.42,30.66479]
[1641014003479,10.53354842,171.52,171.46,4.14078462]
[1641014003880,10.53354842,171.52,171.44,33.8457]
[1641014004080,10.53354842,171.52,171.47,4.1405433]
[1641014004581,10.53354842,171.52,171.44,35.06745353]
[1641014004781,10.53354842,171.52,171.45,1.22175353]
[1641014004982,10.53354842,171.52,171.45,4.22175353]
[1641014005280,10.53354842,171.52,171.45,1.22175353]
[1641014005480,10.53354842,171.52,171.44,43.24927886]
[1641014005481,27.66479,171.53,171.46,4.13477003]
[1641014005680,27.66479,171.53,171.46,31.79956003]
[1641014006081,27.66479,171.53,171.47,5.35488435]
[1641014007186,32.0245,171.54,171.46,30.66479]
[1641014007787,10.54260284,171.53,171.48,4.14021031]
[1641014008489,10.54260284,171.53,171.49,4.14019536]
[1641014009088,10.54260284,171.53,171.47,1.22178814]
[1641014009689,38.20739284,171.53,171.48,4.14020191]
[1641014010389,38.20739284,171.53,171.45,12.40357886]
[1641014010588,10.54260284,171.52,171.47,4.14047866]
[1641014011589,10.54260284,171.52,171.44,30.8457]
[1641014011790,10.54260284,171.52,171.45,27.66479]
[1641014012090,10.54260284,171.52,171.47,4.14058222]
[1641014012690,10.54260284,171.52,171.45,27.66479]
[1641014012891,10.54260284,171.52,171.45,30.66479]
[1641014013293,10.54260284,171.52,171.45,27.66479]
[1641014013494,27.66479,171.53,171.49,4.1402954]
[1641014013692,5.341,171.55,171.49,4.1402954]
[1641014014093,15.88407006,171.55,171.48,4.14034009]
[1641014014793,15.88407006,171.55,171.45,27.66479]
[1641014014994,15.88407006,171.55,171.49,4.14028121]
[1641014015494,15.88407006,171.55,171.45,43.06836886]
[1641014015693,15.88407006,171.55,171.5,4.14004253]
[1641014016294,15.88407006,171.55,171.46,19.64355644]
[1641014016893,15.88407006,171.55,171.5,4.1400427]
[1641014017495,15.88407006,171.55,171.49,4.14017907]
[1641014018194,15.88407006,171.55,171.46,1.22180628]
[1641014018598,15.88407006,171.55,171.49,4.14021529]
[1641014018801,10.54307006,171.55,171.5,3.0]
[1641014018999,10.54307006,171.55,171.49,13.29421529]
[1641014019601,10.54307006,171.55,171.49,9.154]
[1641014019901,10.54307006,171.55,171.54,27.66479]
[1641014020101,10.54307006,171.57,171.54,27.66479]
[1641014021103,10.54307006,171.6,171.54,27.66479]
[1641014022703,43.67329135,171.6,171.54,27.66479]
[1641014023102,33.13022129,171.6,171.54,27.66479]
[1641014023306,31.7331,171.61,171.54,21.04214397]
[1641014023906,31.7331,171.61,171.52,27.66479]
[1641014024107,31.7331,171.61,171.51,30.6926]
[1641014025910,27.66479,171.59,171.51,30.6926]
[1641014026109,33.29579,171.59,171.51,30.6926]
[1641014028515,33.29579,171.59,171.51,39.6326]
[1641014030220,5.631,171.59,171.51,39.6326]
[1641014030415,31.7331,171.61,171.51,39.6326]
[1641014030816,31.7331,171.61,171.51,43.6326]
[1641014031016,31.7331,171.61,171.51,39.6326]
[1641014031821,31.7331,171.61,171.51,43.74863724]
[1641014032618,4.11584063,171.58,171.51,43.74863724]
[1641014033821,31.7331,171.61,171.51,43.74863724]
[1641014033822,4.11584063,171.59,171.51,43.74863724]
[1641014034422,4.11584063,171.58,171.51,39.6326]
[1641014035026,10.53689972,171.6,171.55,4.11603724]
[1641014035925,10.53689972,171.6,171.54,4.11603724]
[1641014036726,10.53689972,171.6,171.55,4.11603724]
[1641014036925,10.53689972,171.6,171.55,17.91003724]
[1641014037127,10.53689972,171.6,171.55,10.91003724]
[1641014037628,10.53689972,171.62,171.57,4.11603724]
[1641014037826,10.53689972,171.62,171.57,61.73992724]
[1641014038628,10.53689972,171.62,171.57,34.07513724]
[1641014039030,10.53689972,171.64,171.58,5.33836574]
[1641014039632,10.53689972,171.64,171.58,4.11603724]
[1641014040031,43.66712101,171.64,171.57,29.9591]
[1641014040233,49.60612101,171.64,171.57,29.9591]
[1641014041535,16.47589972,171.64,171.57,34.07513724]
[1641014042533,10.53689972,171.64,171.57,34.07513724]
[1641014043634,96.30181129,171.65,171.57,34.07513724]
[1641014043836,63.17159,171.65,171.57,29.9591]
[1641014045534,57.99959,171.65,171.57,29.9591]
[1641014049338,64.47559,171.65,171.57,29.9591]
[1641014050939,4.11924787,171.61,171.57,29.9591]
[1641014053245,4.11924787,171.58,171.57,34.07513724]
[1641014053445,4.11924787,171.58,171.57,4.11603724]
[1641014053845,4.11924787,171.58,171.57,5.3380198]
[1641014059052,4.11924787,171.58,171.57,1.22198256]
[1641014060953,4.11924787,171.59,171.57,1.22198256]
[1641014061654,4.11924787,171.59,171.58,4.13662276]
[1641014066057,10.53029206,171.64,171.58,4.13662276]
[1641014068961,3.0,171.63,171.57,5.35860532]
[1641014069259,10.53029206,171.64,171.57,5.35860532]
[1641014069260,3.0,171.59,171.57,5.35860532]
[1641014069463,5.212,171.59,171.57,4.13662276]
[1641014069660,5.212,171.59,171.54,4.13662276]
[1641014070662,4.13223078,171.56,171.53,60.83662276]
[1641014071160,4.13223078,171.56,171.53,4.13662276]
[1641014071363,4.13223078,171.54,171.52,4.13662276]
[1641014072162,4.13223078,171.55,171.52,5.356951]
[1641014072364,4.13223078,171.55,171.52,11.351951]
[1641014072765,4.13223078,171.55,171.52,7.21532824]
[1641014072966,4.13223078,171.57,171.53,1.22032824]
[1641014073764,4.13223078,171.58,171.55,4.1298922]
[1641014075567,4.13223078,171.57,171.54,4.1298922]
[1641014076169,4.13223078,171.58,171.55,4.1298922]
[1641014078070,4.13223078,171.58,171.55,10.6528922]
[1641014079372,4.13223078,171.58,171.55,4.1298922]
[1641014080475,4.13223078,171.57,171.54,5.34963283]
[1641014081375,4.13223078,171.56,171.53,33.7601922]
[1641014081573,4.13223078,171.56,171.53,4.1298922]
[1641014082775,4.13223078,171.57,171.54,4.1298922]
[1641014082974,4.13223078,171.57,171.54,10.0218922]
[1641014083776,4.13223078,171.56,171.55,1.21973985]
[1641014084474,38.20041308,171.6,171.52,18.42226665]
[1641014085278,4.13860792,171.56,171.52,19.64462763]
[1641014085779,31.0884,171.61,171.52,19.64462763]
[1641014085976,58.75319,171.61,171.52,19.64462763]
[1641014086476,4.13859856,171.56,171.52,19.64462763]
[1641014087582,10.53569676,171.6,171.52,19.64462763]
[1641014088177,4.13861011,171.56,171.52,19.64462763]
[1641014089081,58.75319,171.61,171.53,12.40357886]
[1641014089479,58.75319,171.61,171.53,17.05657886]
[1641014089679,4.13702095,171.57,171.53,4.653]
[1641014090480,58.75319,171.61,171.53,4.653]
[1641014090681,58.75319,171.61,171.54,1.22236098]
[1641014091080,58.75319,171.61,171.52,18.42226665]
[1641014091280,4.13697669,171.57,171.52,19.64415401]
[1641014092281,58.75319,171.61,171.52,19.64415401]
[1641014092882,4.13703457,171.57,171.52,19.64415401]
[1641014093481,58.75319,171.61,171.52,19.64415401]
[1641014094284,4.13708086,171.56,171.52,19.64415401]
[1641014094784,4.13708027,171.57,171.52,19.64415401]
[1641014094986,4.13708027,171.57,171.52,25.50115401]
[1641014095387,4.13708231,171.56,171.53,1.22188736]
[1641014095887,58.75319,171.61,171.53,1.22188736]
[1641014096087,58.75319,171.61,171.52,1.22188736]
[1641014096789,4.13708102,171.56,171.52,1.22188736]
[1641014097288,58.75319,171.61,171.52,1.22188736]
[1641014098488,4.13707119,171.56,171.52,1.22188736]
[1641014099088,5.878,171.6,171.52,1.22188736]
[1641014099289,4.13747,171.54,171.53,4.13747]
[1641014099792,4.13747,171.54,171.53,7.13747]
[1641014099991,4.13747,171.54,171.53,4.13747]
[1641014100195,4.13747,171.54,171.53,31.80226]
[1641014100393,10.53333191,171.6,171.53,27.66479]
[1641014100594,10.53333191,171.6,171.53,31.93279]
[1641014101297,31.0884,171.61,171.53,31.93279]
[1641014101495,31.0884,171.61,171.58,4.13813285]
[1641014101696,3.0,171.64,171.58,4.13813285]
[1641014102095,27.66479,171.61,171.58,4.13813285]
[1641014102296,27.66479,171.61,171.54,19.64449855]
[1641014102896,27.66479,171.61,171.57,4.13838905]
[1641014104096,27.66479,171.61,171.54,1.22240849]
[1641014104696,27.66479,171.61,171.57,4.13858206]
[1641014105397,27.66479,171.61,171.54,1.22240849]
[1641014105597,32.32179,171.61,171.53,12.40357886]
[1641014106297,32.32179,171.61,171.56,4.13872639]
[1641014106497,31.8069,171.6,171.56,4.13872639]
[1641014106796,32.32179,171.61,171.56,4.13872639]
[1641014106997,32.32179,171.61,171.52,19.64467661]
[1641014107197,31.7535,171.6,171.52,19.64467661]
[1641014107500,31.7535,171.6,171.56,4.13869182]
[1641014108201,31.7535,171.6,171.52,19.64467661]
[1641014108401,31.7535,171.6,171.57,4.13857382]
[1641014108606,27.66479,171.61,171.57,4.13857382]
[1641014109404,27.66479,171.61,171.53,12.40357886]
[1641014109806,27.66479,171.61,171.57,4.13857102]
[1641014111009,27.66479,171.61,171.53,12.40357886]
[1641014111709,27.66479,171.61,171.56,4.13862756]
[1641014112309,27.66479,171.61,171.52,13.62592799]
[1641014112510,42.11888529,171.6,171.55,4.13878982]
[1641014113413,31.5825,171.6,171.52,1.22234913]
[1641014113609,36.6945,171.6,171.52,1.22234913]
[1641014114012,36.6945,171.6,171.55,4.13881476]
[1641014114709,36.6945,171.6,171.52,1.22234913]
[1641014115114,36.6945,171.6,171.55,4.13877138]
[1641014115912,36.6945,171.6,171.52,1.22234913]
[1641014116513,4.13893294,171.55,171.54,4.13893294]
[1641014117214,10.53690052,171.59,171.51,51.79737886]
[1641014117414,10.53690052,171.59,171.51,43.7058]
[1641014118315,4.13890869,171.55,171.54,4.13890869]
[1641014118714,31.5825,171.6,171.51,56.10937886]
[1641014119415,31.5825,171.6,171.55,4.13890188]
[1641014119816,3.0,171.59,171.55,4.13890188]
[1641014120017,4.564,171.59,171.51,51.79737886]
[1641014120516,27.66479,171.58,171.51,51.79737886]
[1641014120716,27.66479,171.58,171.55,4.13890519]
[1641014121315,27.66479,171.58,171.53,4.13914447]
[1641014121718,30.66479,171.58,171.53,4.13914447]
[1641014121916,27.66479,171.58,171.53,4.13914447]
[1641014122116,3.0,171.54,171.53,4.13914447]
[1641014122318,9.401,171.54,171.53,4.13914447]
[1641014122516,37.06579,171.54,171.49,12.40357886]
[1641014122717,3.0,171.52,171.49,12.40357886]
[1641014124018,3.0,171.52,171.49,4.14036773]
[1641014124620,27.66479,171.51,171.45,12.40357886]
[1641014124820,27.66479,171.51,171.47,4.14066909]
[1641014125419,27.66479,171.51,171.44,32.5364]
[1641014125622,27.66479,171.51,171.48,4.14059065]
[1641014125820,27.66479,171.51,171.48,8.43159065]
[1641014126221,27.66479,171.51,171.5,4.14025495]
[1641014126422,21.04038208,171.51,171.5,4.14025495]
[1641014126620,21.04038208,171.51,171.48,4.291]
[1641014127221,21.04038208,171.51,171.5,4.14020973]
[1641014128022,21.04038208,171.51,171.49,4.14020973]
[1641014128627,21.04038208,171.51,171.5,4.14020973]
[1641014130130,21.04038208,171.51,171.47,12.40357886]
[1641014130829,21.04038208,171.51,171.49,4.14029131]
[1641014131429,21.04038208,171.51,171.46,19.31157886]
[1641014131632,21.04038208,171.51,171.47,12.40357886]
[1641014133333,30.3987,171.53,171.47,12.40357886]
[1641014134236,30.3987,171.53,171.5,4.13996679]
[1641014134436,30.66479,171.54,171.5,4.13996679]
[1641014135534,27.66479,171.54,171.5,4.13996679]
[1641014136940,27.66479,171.54,171.52,4.13996679]
[1641014137138,27.66479,171.54,171.52,10.83296679]
[1641014138239,30.66479,171.54,171.53,5.3618309]
[1641014138740,27.66479,171.54,171.5,4.13996679]
[1641014139341,27.66479,171.54,171.52,4.13996679]
[1641014139541,27.66479,171.54,171.52,10.14996679]
[1641014140442,27.66479,171.56,171.52,10.14996679]
[1641014141442,27.66479,171.56,171.54,4.13996679]
[1641014145348,27.66479,171.56,171.52,6.01]
[1641014145549,27.66479,171.56,171.51,4.13996679]
[1641014145948,27.66479,171.56,171.52,4.13996679]
[1641014146148,27.66479,171.56,171.52,10.11796679]
[1641014149151,27.66479,171.56,171.52,5.978]
[1641014149350,27.66479,171.56,171.51,4.13996679]
[1641014154059,27.66479,171.56,171.52,4.13996679]
[1641014154257,27.66479,171.56,171.52,10.02496679]
[1641014155156,4.12241845,171.58,171.52,10.02496679]
[1641014155958,4.12241845,171.58,171.53,5.3570085]
[1641014156858,38.40601845,171.59,171.53,5.3570085]
[1641014157461,34.2836,171.59,171.56,4.13996679]
[1641014157660,3.0,171.59,171.56,4.13996679]
[1641014159860,27.66479,171.6,171.56,4.13996679]
[1641014160062,30.66479,171.6,171.56,4.13996679]
[1641014160261,30.66479,171.6,171.56,9.09796679]
[1641014161262,27.66479,171.6,171.56,9.09796679]
[1641014161462,30.66479,171.6,171.56,9.09796679]
[1641014162063,27.66479,171.6,171.56,9.09796679]
[1641014162463,3.0,171.59,171.56,9.09796679]
[1641014162666,3.0,171.58,171.56,9.09796679]
[1641014162864,3.0,171.58,171.55,4.13996679]
[1641014163163,27.66479,171.6,171.55,4.13996679]
[1641014163364,27.66479,171.6,171.55,10.56896679]
[1641014163563,27.66479,171.6,171.55,6.429]
[1641014168267,27.66479,171.6,171.54,35.33686679]
[1641014171372,27.66479,171.6,171.55,5.35893309]
[1641014171572,27.66479,171.6,171.55,11.68093309]
[1641014172171,27.66479,171.6,171.55,10.46196679]
[1641014172574,4.12852504,171.58,171.55,10.46196679]
[1641014175479,4.12852504,171.56,171.55,6.322]
[1641014175682,4.12852504,171.56,171.52,12.40357886]
[1641014176378,4.12852504,171.55,171.51,12.40357886]
[1641014176981,4.12852504,171.56,171.51,12.40357886]
[1641014177280,4.12852504,171.56,171.5,26.94137122]
[1641014177581,4.12852504,171.56,171.5,54.60616122]
[1641014177983,27.66479,171.6,171.51,12.40357886]
[1641014177984,4.12852504,171.57,171.51,12.40357886]
[1641014178482,4.12852504,171.57,171.51,18.42137122]
[1641014179489,7.12852504,171.57,171.51,18.42137122]
[1641014179685,27.66479,171.55,171.51,18.42137122]
[1641014179889,33.50079,171.55,171.51,18.42137122]
[1641014180088,33.50079,171.55,171.51,12.40357886]
[1641014180286,4.12852504,171.53,171.47,12.40357886]
[1641014181088,4.12852504,171.52,171.46,43.26337886]
[1641014181588,4.12852504,171.52,171.47,27.66479]
[1641014181887,4.12852504,171.53,171.47,51.08025528]
[1641014182797,4.12852504,171.53,171.47,45.07136886]
[1641014183896,4.12852504,171.53,171.48,3.0]
[1641014184097,4.12852504,171.53,171.47,45.07136886]
[1641014184696,31.79331504,171.55,171.49,12.40357886]
[1641014185097,4.12852504,171.55,171.49,12.40357886]
[1641014185397,4.12852504,171.54,171.48,18.41229409]
[1641014186702,4.12852504,171.55,171.49,12.40357886]
[1641014187403,4.13344076,171.53,171.48,12.40357886]
[1641014188301,27.66479,171.57,171.48,12.40357886]
[1641014188502,4.13317155,171.55,171.49,12.40357886]
[1641014189204,27.66479,171.57,171.49,12.40357886]
[1641014190107,4.13310376,171.55,171.49,12.40357886]
[1641014190705,4.1332329,171.54,171.52,4.1332329]
[1641014191707,4.1330843,171.55,171.53,4.1330843]
[1641014192305,27.66479,171.57,171.52,1.22000455]
[1641014192805,27.66479,171.57,171.51,5.037]
[1641014193006,27.66479,171.57,171.54,4.13924831]
[1641014193507,27.66479,171.57,171.51,5.037]
[1641014193710,27.66479,171.57,171.53,4.13939232]
[1641014194510,27.66479,171.57,171.51,5.037]
[1641014194809,27.66479,171.57,171.51,4.13075993]
[1641014195510,27.66479,171.57,171.51,1.21928752]
[1641014196211,27.66479,171.57,171.5,32.2778]
[1641014196411,27.66479,171.57,171.51,4.13078005]
[1641014197115,27.66479,171.57,171.52,4.13058392]
[1641014197714,27.66479,171.57,171.51,1.21929161]
[1641014197715,27.66479,171.57,171.51,4.13062833]
[1641014198417,27.66479,171.57,171.52,4.13045323]
[1641014199519,27.66479,171.57,171.48,12.40357886]
[1641014200219,27.66479,171.57,171.52,4.13044519]
[1641014201020,27.66479,171.57,171.48,19.62799577]
[1641014201720,29.77,171.56,171.53,4.13044336]
[1641014201921,27.66479,171.57,171.53,4.13044336]
[1641014202622,27.66479,171.57,171.49,12.40357886]
[1641014203122,27.66479,171.57,171.53,4.13044989]
[1641014203625,27.66479,171.57,171.49,12.40357886]
[1641014204426,27.66479,171.57,171.53,4.13045003]
[1641014204928,27.66479,171.57,171.49,12.40357886]
[1641014205127,27.66479,171.57,171.52,5.448]
[1641014205729,27.66479,171.57,171.53,5.34975471]
[1641014206329,27.66479,171.57,171.52,5.448]
[1641014207129,27.66479,171.57,171.54,4.13919199]
[1641014207732,27.66479,171.57,171.52,5.448]
[1641014208839,27.66479,171.57,171.54,4.13919114]
[1641014209641,27.66479,171.57,171.55,4.13899098]
[1641014210437,27.66479,171.57,171.54,4.1391874]
[1641014211139,27.66479,171.57,171.52,5.448]
[1641014211339,27.66479,171.57,171.5,44.39187886]
[1641014212040,27.66479,171.57,171.54,4.13918699]
[1641014212239,27.66479,171.57,171.54,8.64018699]
[1641014212640,27.66479,171.57,171.54,4.501]
[1641014213339,27.66479,171.57,171.54,8.64003416]
[1641014214041,27.66479,171.57,171.54,4.501]
[1641014214241,27.66479,171.57,171.5,44.39187886]
[1641014214643,27.66479,171.57,171.53,4.13267065]
[1641014215245,27.66479,171.57,171.5,31.9883]
[1641014215947,27.66479,171.57,171.53,4.13272199]
[1641014216653,27.66479,171.57,171.5,31.9883]
[1641014216854,27.66479,171.57,171.54,4.13262836]
[1641014217252,27.66479,171.57,171.51,1.22000775]
[1641014218554,58.12779,171.6,171.51,1.22000775]
[1641014218756,58.12779,171.6,171.54,4.13246725]
[1641014219454,58.12779,171.6,171.53,4.336]
[1641014219455,61.12779,171.6,171.53,4.336]
[1641014220055,3.0,171.59,171.54,5.35248971]
[1641014220257,27.66479,171.57,171.54,5.35248971]
[1641014220857,27.66479,171.57,171.53,4.13270603]
[1641014221456,27.66479,171.57,171.51,1.21998431]
[1641014222157,27.66479,171.57,171.53,4.13271462]
[1641014222757,27.66479,171.57,171.51,1.21998431]
[1641014223459,27.66479,171.57,171.53,4.13281985]
[1641014224059,27.66479,171.57,171.51,1.21998431]
[1641014224760,27.66479,171.57,171.53,4.13928648]
[1641014225562,27.66479,171.57,171.51,1.221879]
[1641014226360,27.66479,171.57,171.53,4.13930164]
[1641014227261,27.66479,171.57,171.51,1.22187901]
[1641014228164,27.66479,171.57,171.53,4.13928278]
[1641014228662,27.66479,171.57,171.5,44.39187886]
[1641014228863,3.0,171.53,171.51,1.22188114]
[1641014229463,3.0,171.53,171.5,4.13991615]
[1641014230565,27.66479,171.54,171.46,71.67176886]
[1641014230868,27.66479,171.54,171.47,1.22179126]
[1641014231564,27.66479,171.54,171.5,4.14001658]
[1641014232364,27.66479,171.54,171.51,4.1398001]
[1641014233166,27.66479,171.54,171.48,4.12584912]
[1641014233666,27.66479,171.54,171.47,1.22182774]
[1641014234370,27.66479,171.54,171.49,4.12563395]
[1641014235370,27.66479,171.54,171.49,1.22182774]
[1641014235970,27.66479,171.54,171.49,4.12571378]
[1641014236572,27.66479,171.54,171.47,1.2176528]
[1641014237775,27.66479,171.54,171.49,4.12571361]
[1641014237974,27.66479,171.54,171.47,1.2176528]
[1641014237975,27.66479,171.54,171.48,4.12590121]
[1641014238580,27.66479,171.54,171.47,1.2176528]
[1641014238778,27.66479,171.54,171.49,4.12576213]
[1641014239480,27.66479,171.54,171.47,1.2176528]
[1641014240479,31.79058391,171.54,171.49,4.12579391]
[1641014240880,27.66479,171.54,171.47,1.2176528]
[1641014241483,31.79058399,171.54,171.49,4.12579399]
[1641014242684,27.66479,171.54,171.47,1.2176528]
[1641014242983,31.79057592,171.54,171.49,4.12578592]
[1641014243983,27.66479,171.54,171.47,1.2176528]
[1641014244584,27.66479,171.54,171.51,4.13990894]
[1641014245288,27.66479,171.54,171.48,12.40357886]
[1641014245987,27.66479,171.54,171.52,4.1398233]
[1641014247188,27.66479,171.54,171.52,5.76]
[1641014247689,27.66479,171.57,171.52,9.8996824]
[1641014248289,32.3614,171.58,171.52,9.8996824]
[1641014248490,33.13022129,171.6,171.52,9.8996824]
[1641014248788,33.13022129,171.6,171.52,5.76]
[1641014249090,33.13022129,171.6,171.53,33.02605568]
[1641014249290,33.13022129,171.61,171.53,63.89295568]
[1641014250192,10.53690115,171.61,171.56,4.13862643]
[1641014250894,10.53690115,171.61,171.53,58.53169]
[1641014251794,10.53690115,171.61,171.56,4.1386195]
[1641014252493,10.53690115,171.61,171.53,58.53169]
[1641014252993,10.53690115,171.61,171.56,4.13860322]
[1641014253196,13.53690115,171.61,171.56,4.13860322]
[1641014253395,27.66479,171.57,171.56,4.13860322]
[1641014254093,27.66479,171.57,171.52,12.40357886]
[1641014254696,27.66479,171.57,171.54,4.13903915]
[1641014255495,27.66479,171.57,171.53,1.22190383]
[1641014256100,27.66479,171.57,171.52,4.463]
[1641014256300,27.66479,171.57,171.55,4.13896123]
[1641014256502,3.0,171.56,171.55,4.13896123]
[1641014256903,27.66479,171.57,171.55,4.13896123]
[1641014257102,27.66479,171.57,171.53,1.2219121]
[1641014257604,27.66479,171.57,171.52,4.463]
[1641014257804,27.66479,171.57,171.54,4.13903216]
[1641014258404,32.619,171.6,171.52,8.58687259]
[1641014258608,35.619,171.6,171.52,8.58687259]
[1641014259304,32.619,171.6,171.52,8.58687259]
[1641014259505,27.66479,171.59,171.52,8.58687259]
[1641014259707,27.66479,171.59,171.52,4.463]
[1641014259907,4.123712,171.57,171.51,30.4137]
[1641014260308,4.12368477,171.58,171.52,5.3411318]
[1641014260506,4.12368477,171.58,171.52,10.6311318]
[1641014261507,27.66479,171.59,171.52,10.6311318]
[1641014261706,27.66479,171.59,171.53,5.3411318]
[1641014262206,4.12365116,171.57,171.52,9.41365116]
[1641014262807,27.66479,171.59,171.52,5.29]
[1641014263009,4.1238857,171.56,171.52,5.29]
[1641014263410,4.1238857,171.56,171.52,35.95479]
[1641014263610,27.66479,171.62,171.52,32.95479]
[1641014263810,10.53837134,171.58,171.54,4.13903481]
[1641014265012,33.13022129,171.61,171.54,4.13903481]
[1641014265211,27.66479,171.62,171.57,4.13828717]
[1641014265411,27.66479,171.62,171.57,8.38928717]
[1641014265813,27.66479,171.62,171.57,4.251]
[1641014266613,27.66479,171.62,171.53,18.42104772]
[1641014266815,27.66479,171.62,171.57,4.13825419]
[1641014267517,27.66479,171.59,171.53,19.64302807]
[1641014267815,30.66479,171.62,171.53,19.64302807]
[1641014268014,27.66479,171.62,171.53,19.64302807]
[1641014268215,30.66479,171.62,171.56,4.138429]
[1641014268416,27.66479,171.62,171.56,4.138429]
[1641014268815,27.66479,171.62,171.55,4.13875207]
[1641014269016,10.53735346,171.61,171.55,4.13875207]
[1641014269516,10.53735346,171.61,171.52,1.22198035]
[1641014269717,31.3159,171.6,171.57,4.13851782]
[1641014269916,10.53735346,171.61,171.57,4.13851782]
[1641014271319,10.53735346,171.61,171.55,1.22198035]
[1641014271718,10.53735346,171.61,171.56,4.13868516]
[1641014272317,10.53735346,171.61,171.53,6.269]
[1641014273520,10.53735346,171.61,171.56,4.13862806]
[1641014274321,10.53735346,171.61,171.55,1.22194401]